fUSD/lending_fUSD_20250606
["ID","MTS","AMOUNT","RATE_DAILY","PERIOD"]
[364681068,1749197480066,-151.0,0.00030657,7]
[364681069,1749197480076,-151.0,0.00030657,7]
[364681070,1749197480086,-151.0,0.00030657,7]
[364681071,1749197480095,-151.0,0.00030657,7]
[364681072,1749197480105,-151.0,0.00030657,7]
[364681073,1749197480115,-151.0,0.00030657,7]
[364681074,1749197480126,-151.0,0.00030657,7]
[364681075,1749197480135,-3881.597127,0.00030657,7]
[364681076,1749197480145,-480.0,0.00030657,7]
[364681077,1749197480154,-480.0,0.00030657,7]
[364681078,1749197480164,-480.0,0.00030657,7]
[364681079,1749197480173,-480.0,0.00030657,7]
[364681080,1749197480183,-480.0,0.00030657,7]
[364681081,1749197480192,-155.362037,0.00030657,7]
[364681082,1749197480202,-754.35,0.00030657,7]
[364681083,1749197480213,-674.88,0.00030657,7]
[364681084,1749197480223,-325.40679902,0.00030657,7]
[364681085,1749197480233,-151.0,0.00030657,7]
[364681086,1749197480243,-151.0,0.00030657,7]
[364681087,1749197480253,-734.068906,0.00030657,7]
[364681088,1749197480262,-480.0,0.00030657,7]
[364681089,1749197480272,-480.0,0.00030657,7]
[364681090,1749197480283,-151.0,0.00030657,7]
[364681091,1749197480293,-734.068906,0.00030657,7]
[364681092,1749197480303,-480.0,0.00030657,7]
[364681093,1749197480313,-151.0,0.00030657,7]
[364681094,1749197480323,-480.0,0.00030657,7]
[364681095,1749197480333,-151.0,0.00030657,7]
[364681096,1749197480343,-1092.2,0.00030657,7]
[364681097,1749197480352,-480.0,0.00030657,7]
[364681098,1749197480362,-151.0,0.00030657,7]
[364681099,1749197480372,-480.0,0.00030657,7]
[364681100,1749197480383,-248.943433,0.00030657,7]
[364681101,1749197480392,-680.02,0.00030657,7]
[364681102,1749197480402,-480.0,0.00030657,7]
[364681103,1749197480411,-480.0,0.00030657,7]
[364681104,1749197480421,-151.0,0.00030657,7]
[364681105,1749197480431,-480.0,0.00030657,7]
[364681106,1749197480440,-480.0,0.00030657,7]
[364681107,1749197480450,-480.0,0.00030657,7]
[364681108,1749197480460,-505.315916,0.00030657,7]
[364681109,1749197480470,-505.315916,0.00030657,7]
[364681110,1749197480479,-480.0,0.00030657,7]
[364681111,1749197480488,-279.90584,0.00030657,7]
[364681112,1749197480497,-480.0,0.00030657,7]
[364681113,1749197480507,-480.0,0.00030657,7]
[364681114,1749197480518,-480.0,0.00030657,7]
[364681115,1749197480528,-151.0,0.00030657,7]
[364681116,1749197480537,-480.0,0.00030657,7]
[364681117,1749197480547,-555.69,0.00030657,7]
[364681118,1749197480556,-480.0,0.00030657,7]
[364681119,1749197480566,-480.0,0.00030657,7]
[364681120,1749197480576,-620.89,0.00030657,7]
[364681121,1749197480585,-686.94,0.00030657,7]
[364681122,1749197480595,-480.0,0.00030657,7]
[364681123,1749197480605,-555.19,0.00030657,7]
[364681124,1749197480614,-480.0,0.00030657,7]
[364681125,1749197480625,-151.0,0.00030657,7]
[364681126,1749197480635,-480.0,0.00030657,7]
[364681127,1749197480644,-816.32,0.00030657,7]
[364681128,1749197480654,-480.0,0.00030657,7]
[364681129,1749197480664,-480.0,0.00030657,7]
[364681130,1749197480675,-579.166829,0.00030657,7]
[364681131,1749197480685,-746.12,0.00030657,7]
[364681132,1749197480695,-579.166829,0.00030657,7]
[364681133,1749197480704,-553.55,0.00030657,7]
[364681134,1749197480715,-480.0,0.00030657,7]
[364681135,1749197480724,-647.9,0.00030657,7]
[364681136,1749197480734,-480.0,0.00030657,7]
[364681137,1749197480744,-480.0,0.00030657,7]
[364681138,1749197480754,-399.2472697,0.00030657,7]
[364681139,1749197480763,-480.0,0.00030657,7]
[364681140,1749197480772,-151.0,0.00030657,7]
[364681141,1749197480781,-480.0,0.00030657,7]
[364681142,1749197480791,-884.4,0.00030657,7]
[364681143,1749197480800,-615.17,0.00030657,7]
[364681144,1749197480810,-637.3,0.00030657,7]
[364681145,1749197480819,-228.79945122,0.00030657,7]
[364681146,1749197480829,-151.0,0.00030657,7]
[364681147,1749197480839,-480.0,0.00030657,7]
[364681148,1749197480848,-192.517797,0.00030657,7]
[364681149,1749197480857,-496.33,0.00030657,7]
[364681150,1749197480866,-480.0,0.00030657,7]
[364681151,1749197480875,-192.517797,0.00030657,7]
[364681152,1749197480885,-480.0,0.00030657,7]
[364681153,1749197480894,-162.813868,0.00030657,7]
[364681154,1749197480904,-480.0,0.00030657,7]
[364681155,1749197480914,-480.0,0.00030657,7]
[364681156,1749197480923,-480.0,0.00030657,7]
[364681157,1749197480933,-506.43,0.00030657,7]
[364681158,1749197480942,-480.0,0.00030657,7]
[364681159,1749197480952,-480.0,0.00030657,7]
[364681160,1749197480962,-480.0,0.00030657,7]
[364681161,1749197480971,-480.0,0.00030657,7]
[364681162,1749197480981,-480.0,0.00030657,7]
[364681163,1749197480991,-480.0,0.00030657,7]
[364681164,1749197481001,-480.0,0.00030657,7]
[364681165,1749197481011,-992.947527,0.00030657,7]
[364681166,1749197481022,-151.0,0.00030657,7]
[364681167,1749197481032,-882.83,0.00030657,7]
[364681168,1749197481042,-992.947527,0.00030657,7]
[364681169,1749197481052,-920.7,0.00030657,7]
[364681170,1749197481061,-176.76799,0.00030657,7]
[364681171,1749197481071,-490.52,0.00030657,7]
[364681172,1749197481081,-480.0,0.00030657,7]
[364681173,1749197481091,-652.94,0.00030657,7]
[364681174,1749197481101,-480.0,0.00030657,7]
[364681175,1749197481111,-816.26,0.00030657,7]
[364681176,1749197481122,-480.0,0.00030657,7]
[364681177,1749197481133,-495.17357435,0.00030657,7]
[364681178,1749197481143,-480.0,0.00030657,7]
[364681179,1749197481153,-246.601412,0.00030657,7]
[364681180,1749197481163,-480.0,0.00030657,7]
[364681181,1749197481172,-480.0,0.00030657,7]
[364681182,1749197481182,-808.75,0.00030657,7]
[364681183,1749197481191,-246.601412,0.00030657,7]
[364681184,1749197481201,-480.0,0.00030657,7]
[364681185,1749197481212,-1490.588028,0.00030657,7]
[364681186,1749197481222,-549.18638581,0.00030657,7]
[364681187,1749197481232,-1490.588028,0.00030657,7]
[364681188,1749197481242,-151.0,0.00030657,7]
[364681189,1749197481251,-889.93,0.00030657,7]
[364681190,1749197481262,-480.0,0.00030657,7]
[364681191,1749197481272,-480.0,0.00030657,7]
[364681192,1749197481282,-151.0,0.00030657,7]
[364681193,1749197481291,-1492.07,0.00030657,7]
[364681194,1749197481300,-570.19,0.00030657,7]
[364681195,1749197481310,-153.74537542,0.00030657,7]
[364681196,1749197481320,-259.564689,0.00030657,7]
[364681197,1749197481330,-289.84791932,0.00030657,7]
[364681198,1749197481340,-883.22,0.00030657,7]
[364681199,1749197481350,-259.564689,0.00030657,7]
[364681200,1749197481359,-151.0,0.00030657,7]
[364681201,1749197481368,-151.44515001,0.00030657,7]
[364681202,1749197481378,-480.0,0.00030657,7]
[364681203,1749197481387,-480.0,0.00030657,7]
[364681204,1749197481397,-480.0,0.00030657,7]
[364681205,1749197481406,-480.0,0.00030657,7]
[364681206,1749197481415,-1011.1,0.00030657,7]
[364681207,1749197481425,-480.0,0.00030657,7]
[364681208,1749197481434,-532.75,0.00030657,7]
[364681209,1749197481443,-480.0,0.00030657,7]
[364681210,1749197481453,-480.0,0.00030657,7]
[364681211,1749197481464,-434.70904521,0.00030657,7]
[364681212,1749197481473,-1640.94,0.00030657,7]
[364681213,1749197481483,-480.0,0.00030657,7]
[364681214,1749197481492,-480.0,0.00030657,7]
[364681215,1749197481501,-480.0,0.00030657,7]
[364681216,1749197481510,-480.0,0.00030657,7]
[364681217,1749197481520,-480.0,0.00030657,7]
[364681218,1749197481529,-833.22,0.00030657,7]
[364681219,1749197481538,-480.0,0.00030657,7]
[364681220,1749197481547,-480.0,0.00030657,7]
[364681221,1749197481556,-480.0,0.00030657,7]
[364681222,1749197481566,-521.94,0.00030657,7]
[364681223,1749197481575,-1265.84,0.00030657,7]
[364681224,1749197481588,-480.0,0.00030657,7]
[364681225,1749197481597,-476.511358,0.00030657,7]
[364681226,1749197481607,-476.511358,0.00030657,7]
[364681227,1749197481616,-480.0,0.00030657,7]
[364681228,1749197481625,-480.0,0.00030657,7]
[364681229,1749197481635,-431.16801888,0.00030657,7]
[364681230,1749197481644,-480.0,0.00030657,7]
[364681231,1749197481653,-480.0,0.00030657,7]
[364681232,1749197481663,-801.07,0.00030657,7]
[364681233,1749197481673,-771.47,0.00030657,7]
[364681234,1749197481683,-973.74,0.00030657,7]
[364681235,1749197481693,-943.56,0.00030657,7]
[364681236,1749197481702,-480.0,0.00030657,7]
[364681237,1749197481716,-480.0,0.00030657,7]
[364681238,1749197481726,-1859.07,0.00030657,7]
[364681239,1749197481736,-499.23357579,0.00030657,7]
[364681240,1749197481749,-151.0,0.00030657,7]
[364681241,1749197481758,-431.52592886,0.00030657,7]
[364681242,1749197481767,-1350.38,0.00030657,7]
[364681243,1749197481777,-404.18732299,0.00030657,7]
[364681244,1749197481786,-151.0,0.00030657,7]
[364681245,1749197481796,-207.2535787,0.00030657,7]
[364681246,1749197481805,-558.33,0.00030657,7]
[364681247,1749197481815,-480.0,0.00030657,7]
[364681248,1749197481825,-480.0,0.00030657,7]
[364681249,1749197481834,-480.0,0.00030657,7]
[364681250,1749197481844,-1533.58,0.00030657,7]
[364681251,1749197481853,-759.98,0.00030657,7]
[364681252,1749197481862,-480.0,0.00030657,7]
[364681253,1749197481871,-151.0,0.00030657,7]
[364681254,1749197481881,-480.0,0.00030657,7]
[364681255,1749197481890,-583.17,0.00030657,7]
[364681256,1749197481900,-480.0,0.00030657,7]
[364681257,1749197481909,-633.72,0.00030657,7]
[364681258,1749197481919,-480.0,0.00030657,7]
[364681259,1749197481928,-480.0,0.00030657,7]
[364681260,1749197481938,-331.623274,0.00030657,7]
[364681261,1749197481948,-845.77,0.00030657,7]
[364681262,1749197481958,-480.0,0.00030657,7]
[364681263,1749197481968,-1568.45,0.00030657,7]
[364681264,1749197481978,-480.0,0.00030657,7]
[364681265,1749197481987,-331.623274,0.00030657,7]
[364681266,1749197481996,-685.08,0.00030657,7]
[364681267,1749197482006,-480.0,0.00030657,7]
[364681268,1749197482015,-151.0,0.00030657,7]
[364681269,1749197482025,-1963.97,0.00030657,7]
[364681270,1749197482034,-480.0,0.00030657,7]
[364681271,1749197482043,-480.0,0.00030657,7]
[364681272,1749197482053,-153.0604,0.00030657,7]
[364681273,1749197482062,-480.2276776,0.00030657,7]
[364681274,1749197482072,-1619.87,0.00030657,7]
[364681275,1749197482081,-480.0,0.00030657,7]
[364681276,1749197482091,-480.0,0.00030657,7]
[364681277,1749197482100,-480.0,0.00030657,7]
[364681278,1749197482109,-458.49969352,0.00030657,7]
[364681279,1749197482119,-480.0,0.00030657,7]
[364681280,1749197482128,-480.0,0.00030657,7]
[364681281,1749197482137,-480.0,0.00030657,7]
[364681282,1749197482147,-2063.81,0.00030657,7]
[364681283,1749197482157,-480.0,0.00030657,7]
[364681284,1749197482167,-480.0,0.00030657,7]
[364681285,1749197482177,-480.0,0.00030657,7]
[364681286,1749197482186,-480.0,0.00030657,7]
[364681287,1749197482196,-156.86458956,0.00030657,7]
[364681288,1749197482206,-151.0,0.00030657,7]
[364681289,1749197482215,-825.43,0.00030657,7]
[364681290,1749197482225,-480.0,0.00030657,7]
[364681291,1749197482234,-1338.49,0.00030657,7]
[364681292,1749197482243,-480.0,0.00030657,7]
[364681293,1749197482253,-223.87899845,0.00030657,7]
[364681294,1749197482262,-222.330477,0.00030657,7]
[364681295,1749197482271,-1096.05,0.00030657,7]
[364681296,1749197482281,-151.0,0.00030657,7]
[364681297,1749197482290,-480.0,0.00030657,7]
[364681298,1749197482300,-480.0,0.00030657,7]
[364681299,1749197482310,-480.0,0.00030657,7]
[364681300,1749197482319,-480.0,0.00030657,7]
[364681301,1749197482329,-1332.67,0.00030657,7]
[364681302,1749197482338,-728.82,0.00030657,7]
[364681303,1749197482347,-279.345886,0.00030657,7]
[364681304,1749197482356,-494.23,0.00030657,7]
[364681305,1749197482365,-941.87,0.00030657,7]
[364681306,1749197482375,-776.15,0.00030657,7]
[364681307,1749197482383,-151.0,0.00030657,7]
[364681308,1749197482393,-480.0,0.00030657,7]
[364681309,1749197482402,-279.345886,0.00030657,7]
[364681310,1749197482412,-480.0,0.00030657,7]
[364681311,1749197482421,-151.0,0.00030657,7]
[364681312,1749197482430,-555.23,0.00030657,7]
[364681313,1749197482439,-1103.59,0.00030657,7]
[364681314,1749197482448,-480.0,0.00030657,7]
[364681315,1749197482458,-480.0,0.00030657,7]
[364681316,1749197482467,-480.0,0.00030657,7]
[364681317,1749197482475,-480.0,0.00030657,7]
[364681318,1749197482486,-151.0,0.00030657,7]
[364681319,1749197482495,-480.0,0.00030657,7]
[364681320,1749197482505,-2770.23,0.00030657,7]
[364681321,1749197482515,-480.0,0.00030657,7]
[364681322,1749197482524,-547.4,0.00030657,7]
[364681323,1749197482533,-480.0,0.00030657,7]
[364681324,1749197482543,-480.0,0.00030657,7]
[364681325,1749197482553,-480.0,0.00030657,7]
[364681326,1749197482562,-480.0,0.00030657,7]
[364681327,1749197482571,-480.0,0.00030657,7]
[364681328,1749197482581,-480.0,0.00030657,7]
[364681329,1749197482590,-151.0,0.00030657,7]
[364681330,1749197482599,-480.0,0.00030657,7]
[364681331,1749197482608,-480.0,0.00030657,7]
[364681332,1749197482618,-529.21,0.00030657,7]
[364681333,1749197482627,-480.0,0.00030657,7]
[364681334,1749197482636,-1231.44,0.00030657,7]
[364681335,1749197482646,-480.0,0.00030657,7]
[364681336,1749197482656,-482.80318006,0.00030657,7]
[364681337,1749197482669,-480.0,0.00030657,7]
[364681338,1749197482680,-802.64,0.00030657,7]
[364681339,1749197482689,-480.0,0.00030657,7]
[364681340,1749197482698,-400.960197,0.00030657,7]
[364681341,1749197482883,-480.0,0.00030657,7]
[364681342,1749197482894,-480.0,0.00030657,7]
[364681343,1749197482903,-957.68,0.00030657,7]
[364681344,1749197482912,-400.960197,0.00030657,7]
[364681345,1749197482922,-480.0,0.00030657,7]
[364681346,1749197482931,-480.0,0.00030657,7]
[364681347,1749197482940,-490.83,0.00030657,7]
[364681348,1749197482950,-151.0,0.00030657,7]
[364681349,1749197482959,-151.0,0.00030657,7]
[364681350,1749197482968,-1326.31,0.00030657,7]
[364681351,1749197482978,-2307.21,0.00030657,7]
[364681352,1749197482988,-480.0,0.00030657,7]
[364681353,1749197482999,-151.0,0.00030657,7]
[364681354,1749197483008,-1012.38,0.00030657,7]
[364681355,1749197483018,-151.0,0.00030657,7]
[364681356,1749197483027,-480.0,0.00030657,7]
[364681357,1749197483037,-658.82,0.00030657,7]
[364681358,1749197483046,-480.0,0.00030657,7]
[364681359,1749197483056,-480.0,0.00030657,7]
[364681360,1749197483066,-472.80846861,0.00030657,7]
[364681361,1749197483076,-1609.58,0.00030657,7]
[364681362,1749197483085,-480.0,0.00030657,7]
[364681363,1749197483094,-21211.33,0.00030657,7]
[364681364,1749197483103,-1000.0,0.00030657,21]
[364681365,1749197483112,-500.0,0.00030657,2]
[364681366,1749197483122,-480.0,0.00030657,7]
[364681367,1749197483131,-500.0,0.00030657,7]
[364681368,1749197483140,-480.0,0.00030657,7]
[364681369,1749197483150,-480.0,0.00030657,7]
[364681370,1749197483159,-500.0,0.00030657,7]
[364681371,1749197483168,-1822.56,0.00030657,7]
[364681372,1749197483177,-480.0,0.00030657,7]
[364681373,1749197483187,-150.0,0.00030657,7]
[364681374,1749197483196,-453.0,0.00030657,2]
[364681375,1749197483206,-2369.76,0.00030657,7]
[364681376,1749197483217,-954.48,0.00030657,7]
[364681377,1749197483227,-480.0,0.00030657,7]
[364681378,1749197483236,-3344.03,0.00030657,7]
[364681379,1749197483245,-1407.9,0.00030657,7]
[364681380,1749197483255,-480.0,0.00030657,7]
[364681381,1749197483264,-1281.857807,0.00030657,7]
[364681382,1749197483273,-2173.0,0.00030657,7]
[364681383,1749197483283,-2222.98,0.00030657,7]
[364681384,1749197483292,-1281.857807,0.00030657,7]
[364681385,1749197483301,-636.922133,0.00030657,7]
[364681386,1749197483311,-2210.41,0.00030657,7]
[364681387,1749197483319,-150.0,0.00030657,7]
[364681388,1749197483328,-1433.96,0.00030657,7]
[364681389,1749197483337,-1168.31,0.00030657,7]
[364681390,1749197483347,-500.0,0.00030657,7]
[364681391,1749197483355,-480.0,0.00030657,7]
[364681392,1749197483365,-480.0,0.00030657,7]
[364681393,1749197483374,-150.0,0.00030657,7]
[364681394,1749197483383,-1333.62,0.00030657,7]
[364681395,1749197483394,-150.0,0.00030657,7]
[364681396,1749197483403,-636.922133,0.00030657,7]
[364681397,1749197483413,-4588.71,0.00030657,7]
[364681398,1749197483422,-150.0,0.00030657,7]
[364681399,1749197483431,-2119.73,0.00030657,7]
[364681400,1749197483440,-863.97,0.00030657,7]
[364681401,1749197483450,-955.42,0.00030657,7]
[364681402,1749197483460,-150.0,0.00030657,7]
[364681403,1749197483469,-150.0,0.00030657,7]
[364681404,1749197483479,-151.0,0.00030657,7]
[364681405,1749197483488,-2723.64,0.00030657,7]
[364681406,1749197483498,-480.0,0.00030657,7]
[364681407,1749197483507,-480.0,0.00030657,7]
[364681408,1749197483517,-480.0,0.00030657,7]
[364681409,1749197483526,-2057.71,0.00030657,7]
[364681410,1749197483535,-830.5,0.00030657,7]
[364681411,1749197483545,-244.21473,0.00030657,7]
[364681412,1749197483554,-771.51,0.00030657,7]
[364681413,1749197483563,-524.63,0.00030657,7]
[364681414,1749197483573,-244.21473,0.00030657,7]
[364681415,1749197483583,-1510.55,0.00030657,7]
[364681416,1749197483592,-480.0,0.00030657,7]
[364681417,1749197483601,-3222.48,0.00030657,7]
[364681418,1749197483611,-2530.07,0.00030657,7]
[364681419,1749197483621,-1178.3,0.00030657,7]
[364681420,1749197483630,-2377.35,0.00030657,7]
[364681421,1749197483640,-4150.0,0.00030657,7]
[364681422,1749197483650,-872.38,0.00030657,7]
[364681423,1749197483660,-480.0,0.00030657,7]
[364681424,1749197483673,-480.0,0.00030657,7]
[364681425,1749197483683,-480.0,0.00030657,7]
[364681426,1749197483692,-1973.05,0.00030657,7]
[364681427,1749197483702,-2396.18,0.00030657,7]
[364681428,1749197483713,-3870.48,0.00030657,7]
[364681429,1749197483723,-1978.82,0.00030657,7]
[364681430,1749197483732,-2434.52,0.00030657,7]
[364681431,1749197483743,-678.48,0.00030657,7]
[364681432,1749197483752,-151.0,0.00030657,7]
[364681433,1749197483762,-639.4,0.00030657,7]
[364681434,1749197483772,-320.522805,0.00030657,7]
[364681435,1749197483781,-2932.21,0.00030657,7]
[364681436,1749197483791,-480.0,0.00030657,7]
[364681437,1749197483801,-480.0,0.00030657,7]
[364681438,1749197483811,-480.0,0.00030657,7]
[364681439,1749197483820,-539.04,0.00030657,7]
[364681440,1749197483831,-936.41,0.00030657,7]
[364681441,1749197483840,-865.76,0.00030657,7]
[364681442,1749197483849,-480.0,0.00030657,7]
[364681443,1749197483859,-502.34256146,0.00030657,7]
[364681444,1749197483868,-1931.15,0.00030657,7]
[364681445,1749197483877,-480.0,0.00030657,7]
[364681446,1749197483886,-480.0,0.00030657,7]
[364681447,1749197483896,-480.0,0.00030657,7]
[364681448,1749197483906,-574.808789,0.00030657,7]
[364681449,1749197483915,-1682.34,0.00030657,7]
[364681450,1749197483924,-151.0,0.00030657,7]
[364681451,1749197483934,-1187.82,0.00030657,7]
[364681452,1749197483943,-480.0,0.00030657,7]
[364681453,1749197483953,-2424.75,0.00030657,7]
[364681454,1749197483967,-1758.02,0.00030657,7]
[364681455,1749197483977,-665.52,0.00030657,7]
[364681456,1749197483986,-11346.31,0.00030657,7]
[364681457,1749197483996,-480.0,0.00030657,7]
[364681458,1749197484005,-2151.68,0.00030657,7]
[364681459,1749197484015,-156.770574,0.00030657,7]
[364681460,1749197484025,-914.37,0.00030657,7]
[364681461,1749197484035,-251.445257,0.00030657,7]
[364681462,1749197484044,-480.0,0.00030657,7]
[364681463,1749197484054,-480.0,0.00030657,7]
[364681464,1749197484064,-5483.59,0.00030657,7]
[364681465,1749197484073,-480.0,0.00030657,7]
[364681466,1749197484083,-1421.96,0.00030657,7]
[364681467,1749197484092,-4390.51,0.00030657,7]
[364681468,1749197484102,-1257.03,0.00030657,7]
[364681469,1749197484112,-614.49,0.00030657,7]
[364681470,1749197484122,-798.01,0.00030657,30]
[364681471,1749197484132,-480.0,0.00030657,7]
[364681472,1749197484141,-2006.46,0.00030657,7]
[364681473,1749197484151,-480.0,0.00030657,7]
[364681474,1749197484174,-1950.14,0.00030657,7]
[364681475,1749197484189,-1000.0,0.00030657,7]
[364681476,1749197484208,-480.0,0.00030657,7]
[364681477,1749197484226,-399.591324,0.00030657,7]
[364681478,1749197484242,-1739.03,0.00030657,7]
[364681479,1749197484259,-662.65,0.00030657,7]
[364681480,1749197484276,-1412.62,0.00030657,7]
[364681481,1749197484295,-665.09,0.00030657,7]
[364681482,1749197484311,-473.1908608,0.00030657,7]
[364681483,1749197484329,-1527.49,0.00030657,7]
[364681484,1749197484346,-210.943889,0.00030657,7]
[364681485,1749197484365,-2218.6,0.00030657,7]
[364681486,1749197484381,-1479.06,0.00030657,7]
[364681487,1749197484395,-1061.57,0.00030657,7]
[364681488,1749197484413,-517.00093178,0.00030657,7]
[364681489,1749197484426,-1908.77,0.00030657,7]
[364681490,1749197484440,-2387.99,0.00030657,7]
[364681491,1749197484456,-480.0,0.00030657,7]
[364681492,1749197484470,-480.0,0.00030657,7]
[364681493,1749197484484,-2685.06,0.00030657,7]
[364681494,1749197484498,-453.537922,0.00030657,7]
[364681495,1749197484512,-1102.24,0.00030657,7]
[364681496,1749197484526,-557.21,0.00030657,7]
[364681497,1749197484540,-1166.4,0.00030657,7]
[364681498,1749197484555,-480.0,0.00030657,7]
[364681499,1749197484568,-480.0,0.00030657,7]
[364681500,1749197484583,-1597.01,0.00030657,7]
[364681501,1749197484596,-577.15,0.00030657,7]
[364681502,1749197484610,-453.537922,0.00030657,7]
[364681503,1749197484623,-480.0,0.00030657,7]
[364681504,1749197484637,-500.0,0.00030657,7]
[364681505,1749197484651,-480.0,0.00030657,7]
[364681506,1749197484666,-480.0,0.00030657,7]
[364681507,1749197484680,-480.0,0.00030657,7]
[364681508,1749197484695,-500.0,0.00030657,7]
[364681509,1749197484709,-151.0,0.00030657,7]
[364681510,1749197484723,-298.394027,0.00030657,7]
[364681511,1749197484737,-151.0,0.00030657,7]
[364681512,1749197484752,-500.0,0.00030657,7]
[364681513,1749197484768,-2026.78,0.00030657,7]
[364681514,1749197484782,-155.32431393,0.00030657,7]
[364681515,1749197484796,-1382.41,0.00030657,7]
[364681516,1749197484810,-187.226475,0.00030657,7]
[364681517,1749197484826,-480.0,0.00030657,7]
[364681518,1749197484841,-819.62,0.00030657,7]
[364681519,1749197484856,-2463.45,0.00030657,7]
[364681520,1749197484870,-649.09,0.00030657,7]
[364681521,1749197484885,-2048.22,0.00030657,7]
[364681522,1749197484900,-480.0,0.00030657,7]
[364681523,1749197484914,-17017.79,0.00030657,7]
[364681524,1749197484928,-151.0,0.00030657,7]
[364681525,1749197484942,-5024.74,0.00030657,7]
[364681526,1749197484957,-3269.76,0.00030657,7]
[364681527,1749197484972,-2056.04,0.00030657,7]
[364681528,1749197484986,-480.0,0.00030657,7]
[364681529,1749197485001,-480.0,0.00030657,7]
[364681530,1749197485015,-500.0,0.00030657,7]
[364681531,1749197485028,-409.09319824,0.00030657,7]
[364681532,1749197485042,-1907.45,0.00030657,7]
[364681533,1749197485056,-480.0,0.00030657,7]
[364681534,1749197485070,-4171.06,0.00030657,7]
[364681535,1749197485084,-500.0,0.00030657,7]
[364681536,1749197485098,-984.05,0.00030657,7]
[364681537,1749197485112,-500.0,0.00030657,7]
[364681538,1749197485126,-487.04689667,0.00030657,7]
[364681539,1749197485140,-2602.39,0.00030657,7]
[364681540,1749197485155,-6201.95,0.00030657,7]
[364681541,1749197485168,-151.76992592,0.00030657,7]
[364681542,1749197485183,-480.0,0.00030657,7]
[364681543,1749197485197,-908.14,0.00030657,7]
[364681544,1749197485211,-500.0,0.00030657,7]
[364681545,1749197485225,-2121.81,0.00030657,7]
[364681546,1749197485239,-500.0,0.00030657,7]
[364681547,1749197485253,-339.050092,0.00030657,7]
[364681548,1749197485272,-1074.2,0.00030657,7]
[364681549,1749197485286,-238.622857,0.00030657,7]
[364681550,1749197485301,-166.83162424,0.00030657,7]
[364681551,1749197485315,-2106.24,0.00030657,7]
[364681552,1749197485330,-569.14945896,0.00030657,7]
[364681553,1749197485344,-173.3506,0.00030657,7]
[364681554,1749197485359,-12037.38,0.00030657,7]
[364681555,1749197485375,-2112.72,0.00030657,7]
[364681556,1749197485390,-1527.84,0.00030657,7]
[364681557,1749197485405,-848.41,0.00030657,7]
[364681558,1749197485421,-1014.46,0.00030657,7]
[364681559,1749197485436,-339.050092,0.00030657,7]
[364681560,1749197485450,-480.0,0.00030657,7]
[364681561,1749197485463,-1829.73,0.00030657,7]
[364681562,1749197485477,-480.0,0.00030657,7]
[364681563,1749197485492,-1374.66,0.00030657,7]
[364681564,1749197485505,-480.0,0.00030657,7]
[364681565,1749197485519,-151.0,0.00030657,7]
[364681566,1749197485534,-480.0,0.00030657,7]
[364681567,1749197485548,-3874.69,0.00030657,7]